Cogmind - Beta 10.2 @@@ ROGUE MODE // 2021.09.12 @ 22:41:09 Player: Decker Result: Core destroyed Performance ------------- Evolutions (5) 2500 Regions Visited (27) 5400 Robots Destroyed (542) 2710 Value Destroyed (22404) 22404 Prototype IDs (78) 1560 Alien Tech Used (3) 600 Bonus (8593) 8593 TOTAL SCORE: 43767 Bonus ------- High Alert Combat Kills 5502 Follower Combat Kills 91 Entered Garrisons 600 Used RIF Installer 1500 Aligned with FarCom 300 Met Data Miner 300 Met Zhirov 300 Cogmind --------- Core Integrity 0/1000 Matter 172/300 Energy 86/100 System Corruption 10% Temperature Cool (631) Movement Walking (120) Location -4/Proximity Caves Parts ------- > --- POWER (2) -------- (None) > --- PROPULSION (4) --- Myomer Leg Advanced Myomer Leg Advanced Myomer Leg > --- UTILITY (8) ------ High-capacity Storage Unit High-capacity Storage Unit > --- WEAPON (3) ------- Plasma Rifle Advanced Plasma Cannon > --- INVENTORY (20) --- Flexi-carbon Leg High-capacity Storage Unit High-capacity Storage Unit Experimental Sensor Array 0b10 Decoder Chip [Scout] Makeshift Hacking Suite Makeshift Hacking Suite System Backup Module Peak State ------------ > --- POWER ------------ Micro Fission Core Micro Fission Core > --- PROPULSION ------- Improved Medium Treads Enhanced Flexi-carbon Leg Enhanced Flexi-carbon Leg Enhanced Flexi-carbon Leg > --- UTILITY ---------- Advanced Heat Sink High-capacity Storage Unit High-capacity Storage Unit Experimental Sensor Array Experimental Signal Interpreter Experimental Targeting Computer Layered Heavy Armor Plating > --- WEAPON ----------- Neutron Cannon KE Penetrator KE Penetrator > --- INVENTORY -------- Fission Core Micro Fission Core Enhanced Flexi-carbon Leg Enhanced Flexi-carbon Leg Improved Heat Sink Advanced Heat Sink High-capacity Storage Unit High-capacity Storage Unit Advanced Particle Charger Layered Medium Armor Plating Makeshift Hacking Suite Makeshift Hacking Suite System Backup Module Tesla Rifle Heavy Plasma Cannon Advanced Plasma Cannon Gauss Rifle Heavy Machine Gun Proton Missile Launcher Improved Remote Datajack [Rating: 102] Favorites ----------- Power F-cell Engine Engine F-cell Engine Power Core Micro Fission Core Reactor Cold Fusion Reactor Propulsion Light Treads Treads Light Treads Leg Enhanced Flexi-carbon Leg Wheel Wheel Utility High-capacity Storage Unit Device Advanced Heat Sink Storage High-capacity Storage Unit Processor Advanced Targeting Computer Hackware Hacking Suite Protection Layered Medium Armor Plating Weapon Gauss Rifle Energy Gun Shock Rifle Energy Cannon Proton Cannon Ballistic Gun Gauss Rifle Ballistic Cannon Heavy Flak Cannon Launcher Rocket Launcher Special Weapon Plasma Cutter Build | -11 -10 -10 -10 -9 -8 -8 -8 -8 -7 -7 -7 -7 -7 -7 -6 -6 -6 -6 -6 -6 -6 -5 -5 -5 -5 -5 -4 ------- Run | Scr Mat Min Exi Min Mat Gar Mat Gar Fac Gar Fac Low Low Zio Pro Fac Was Fac Low Low Dat Pro Fac Upp Upp Zhi Pro Slots Evolved 10 | . . . . . 4 . . . 2 . . . . . . 2 . . . . . . 2 . . . . Power 1 | . . . . . . . . . . . . . . . . 1 . . . . . . . . . . . Propulsion 2 | . . . . . 1 . . . 1 . . . . . . . . . . . . . . . . . . Utility 6 | . . . . . 3 . . . 1 . . . . . . 1 . . . . . . 1 . . . . Weapon 1 | . . . . . . . . . . . . . . . . . . . . . . . 1 . . . . Parts Attached 672 | 5 25 17 . 10 64 28 7 20 47 19 17 20 11 2 8 80 3 108 15 15 21 9 23 21 42 16 19 Power 35 | 1 1 1 . . 1 2 1 . 3 3 1 . . . . 5 . 7 1 . . 1 1 . 3 1 2 Engine 17 | 1 1 . . . . . 1 . 2 2 . . . . . 1 . 7 1 . . . . . 1 . . Core 14 | . . 1 . . 1 2 . . 1 1 1 . . . . 3 . . . . . 1 1 . . . 2 Reactor 4 | . . . . . . . . . . . . . . . . 1 . . . . . . . . 2 1 . Propulsion 134 | 2 5 2 . . 14 7 1 4 11 5 4 6 1 . 2 14 . 28 2 3 4 . 1 3 7 5 3 Treads 101 | . 1 2 . . 14 7 1 2 11 5 4 6 1 . 2 14 . 17 2 3 . . 1 1 5 2 . Leg 29 | 2 4 . . . . . . 2 . . . . . . . . . 7 . . 4 . . 2 2 3 3 Wheel 4 | . . . . . . . . . . . . . . . . . . 4 . . . . . . . . . Hover . | . . . . . . . . . . . . . . . . . . . . . . . . . . . . Flight . | . . . . . . . . . . . . . . . . . . . . . . . . . . . . Utility 214 | . 8 2 . . 10 . . 4 12 1 4 7 3 2 1 19 2 42 11 10 12 8 15 9 21 8 3 Device 117 | . 1 . . . 2 . . . 4 . 1 3 . . 1 12 1 18 10 9 7 8 9 8 16 6 1 Storage 14 | . 4 . . . 2 . . . 2 . . . . . . . . 3 . . 1 . 2 . . . . Processor 11 | . 1 1 . . 2 . . . 1 . . . 1 . . 1 . 2 . . 1 . 1 . . . . Hackware 7 | . . . . . 1 . . . 2 . 1 . . . . . . 2 . . . . 1 . . . . Protection 65 | . 2 1 . . 3 . . 4 3 1 2 4 2 2 . 6 1 17 1 1 3 . 2 1 5 2 2 Artifact . | . . . . . . . . . . . . . . . . . . . . . . . . . . . . Weapon 289 | 2 11 12 . 10 39 19 5 12 21 10 8 7 7 . 5 42 1 31 1 2 5 . 6 9 11 2 11 Energy Gun 48 | 1 3 . . . 3 . . 1 5 5 3 1 . . . 14 1 7 . . . . 1 . 2 . 1 Energy Cannon 75 | . 2 5 . 4 6 . . 1 6 . . 3 1 . 2 11 . 12 1 2 3 . 1 3 4 2 6 Ballistic Gun 86 | 1 2 3 . 2 14 11 3 5 6 2 2 . 3 . 1 5 . 11 . . 2 . 3 3 4 . 3 Ballistic Cannon 4 | . . . . . . . . . . . . . . . . 1 . 1 . . . . 1 . . . 1 Launcher 75 | . 4 4 . 4 16 8 2 5 3 3 3 3 3 . 2 11 . . . . . . . 3 1 . . Special Weapon 1 | . . . . . . . . . 1 . . . . . . . . . . . . . . . . . . Impact Weapon . | . . . . . . . . . . . . . . . . . . . . . . . . . . . . Slashing Weapon . | . . . . . . . . . . . . . . . . . . . . . . . . . . . . Piercing Weapon . | . . . . . . . . . . . . . . . . . . . . . . . . . . . . Special Melee Weapon . | . . . . . . . . . . . . . . . . . . . . . . . . . . . . Unidentified Prototypes 19 | . . . . . 5 . . . . . 1 . . . . 2 . 1 . . 3 . . . 1 6 . Parts Lost 116 | . . 3 . . 5 5 3 2 3 3 . 4 2 2 . 9 2 26 1 1 6 . 1 3 8 . 27 Power 10 | . . 1 . . . . 1 . . . . . . . . . . 4 . . . . . . . . 4 Propulsion 31 | . . . . . 2 2 1 2 1 2 . . . . . 3 1 7 . . 1 . 1 2 2 . 4 Utility 29 | . . . . . 1 . . . . . . 1 . 1 . 3 1 7 . . 3 . . . 4 . 8 Weapon 46 | . . 2 . . 2 3 1 . 2 1 . 3 2 1 . 3 . 8 1 1 2 . . 1 2 . 11 Highest Loss Streak 19 | . . 2 . . 2 3 2 1 2 3 . 2 1 1 . 3 2 7 1 1 5 . 1 3 4 . 19 Average Slot Usage (%) 98 | . 93 98 100 100 98 99 99 99 99 99 100 99 99 92 99 99 90 97 99 100 99 100 99 94 98 98 89 Engine 4 | . 14 5 . . . . 4 9 5 5 . . . . . . . 8 13 13 13 6 2 . 4 2 . Core 5 | . . 8 14 14 9 9 4 . 1 1 6 7 7 7 7 8 6 2 . . . 5 7 11 3 . . Treads 20 | . . 17 28 28 26 26 26 21 29 29 30 30 30 30 30 25 24 17 26 26 11 6 5 3 6 13 13 Leg 5 | . 28 10 . . . . . 5 . . . . . . . . . 4 . . 14 20 17 18 15 8 8 Device 6 | . . . . . . . . . 3 . 1 1 . . 7 11 11 8 12 13 12 13 12 11 17 20 18 Storage 13 | . 15 14 14 14 17 18 18 18 15 15 15 15 15 15 15 13 9 9 13 13 13 13 11 11 11 11 11 Processor 12 | . 1 12 14 14 17 18 18 18 15 15 15 15 15 15 15 13 13 13 13 13 13 13 11 11 6 . . Hackware 1 | . . . . . 4 9 9 . 8 7 9 2 . . . . . 1 . . . . 3 . . . . Protection 5 | . 4 . . . 4 . . 8 2 7 4 10 14 7 7 7 6 11 6 6 6 6 5 4 7 11 8 Energy Gun 1 | . 2 . . . . . . 2 2 6 7 6 4 . . 4 . 2 . . . . . . . . . Energy Cannon 5 | . 10 21 14 14 2 . . . 3 . . 5 1 . 6 3 4 3 12 13 7 6 4 2 4 5 2 Ballistic Gun 6 | . 12 4 . 3 12 16 15 14 7 2 2 . 1 7 . 1 6 5 . . 5 6 11 13 10 11 11 Launcher 2 | . 1 2 14 9 3 1 2 1 . 4 4 1 6 7 6 2 . . . . . . . . . . . Naked Turns . | . . . . . . . . . . . . . . . . . . . . . . . . . . . . Heaviest Build 130 | 7 60 50 44 45 69 61 64 72 93 93 88 94 98 98 93 116 114 117 114 114 120 116 115 115 130 130 130 Greatest Support 115 | 20 20 40 40 40 68 68 63 60 90 90 88 102 102 95 103 103 88 110 91 91 86 84 84 112 84 90 115 Greatest Overweight (x) 7 | . 2 2 1 1 1 1 1 3 1 1 1 1 1 1 . 1 1 7 1 1 3 1 3 3 4 4 2 Average Overweight (x) . | . . 1 1 1 . . . 1 . . . . . . . . . . 1 1 1 1 1 . 1 1 . Largest Inventory Capacity 20 | 4 18 12 12 12 18 18 18 18 20 20 20 20 20 20 20 20 20 20 20 20 20 20 20 20 20 20 20 Average Capacity 18 | 4 9 12 12 12 17 18 18 18 19 20 20 20 20 20 20 20 15 16 20 20 20 20 20 20 20 20 20 Most Carried 20 | 1 12 12 12 12 18 18 18 18 20 20 20 20 20 20 18 20 20 20 20 20 20 20 20 20 20 20 20 Average Carried 17 | . 9 11 11 11 16 16 16 17 19 19 19 18 19 19 17 19 15 14 19 19 19 20 19 19 19 19 17 Final Capacity 20 | 4 12 12 12 12 18 18 18 18 20 20 20 20 20 20 20 20 4 20 20 20 20 20 20 20 20 20 20 Final Carried 20 | 1 12 12 12 12 17 17 17 18 20 19 19 19 20 18 17 19 2 20 20 20 20 20 20 20 20 20 8 Class Distribution -------------------- 49% | Scavenger-Mutant 22% | Hauler-Mutant 15% | Mutant 5% | Scavenger-Gunner 3% | Scavenger-Skirmisher Dominant Class ---------------- Mutant | -10/Materials Scavenger-Mutant | -10/Mines Mutant | -10/Exiles Mutant | -9/Mines Scavenger-Mutant | -8/Materials Scavenger-Mutant | -8/Garrison Scavenger-Mutant | -8/Materials Scavenger-Mutant | -8/Garrison Scavenger-Mutant | -7/Factory Scavenger-Mutant | -7/Garrison Scavenger-Mutant | -7/Factory Hauler-Mutant | -7/Lower Caves Hauler-Mutant | -7/Lower Caves Hauler-Mutant | -7/Zion Scavenger-Mutant | -6/Proximity Caves Scavenger-Mutant | -6/Factory Hauler-Mutant | -6/Waste Scavenger-Mutant | -6/Factory Hauler-Mutant | -6/Lower Caves Hauler-Mutant | -6/Lower Caves Scavenger-Mutant | -6/Data Miner Scavenger-Mutant | -5/Proximity Caves Scavenger-Gunner | -5/Factory Scavenger-Mutant | -5/Upper Caves Scavenger-Mutant | -5/Upper Caves Scavenger-Mutant | -5/Zhirov Scavenger-Tank | -4/Proximity Caves Resources | -11 -10 -10 -10 -9 -8 -8 -8 -8 -7 -7 -7 -7 -7 -7 -6 -6 -6 -6 -6 -6 -6 -5 -5 -5 -5 -5 -4 ----------- Run | Scr Mat Min Exi Min Mat Gar Mat Gar Fac Gar Fac Low Low Zio Pro Fac Was Fac Low Low Dat Pro Fac Upp Upp Zhi Pro Matter Collected 12801 | 265 427 224 19 218 1553 1129 227 541 818 413 245 317 243 . 137 1169 . 2010 164 145 242 112 509 531 647 214 282 Remotely . | . . . . . . . . . . . . . . . . . . . . . . . . . . . . Salvage Created 25925 | 47 849 266 . 187 2207 1518 358 542 2121 600 377 587 899 . 57 3297 244 4898 1041 765 411 116 1012 910 1290 491 835 Parts 1155 | . 47 18 . 17 128 96 19 30 83 31 17 30 37 . 2 141 8 208 33 18 21 6 44 44 39 7 31 Haulers Intercepted 13 | . 2 . . . 5 . . . 2 . . . . . . 1 . 3 . . . . . . . . . Recyclers Shooed 25 | . 3 . . . 2 . . . 4 . . . . . . 6 . 8 . . . . 2 . . . . Parts Field Recycled . | . . . . . . . . . . . . . . . . . . . . . . . . . . . . Retrieved Matter . | . . . . . . . . . . . . . . . . . . . . . . . . . . . . Parts Self-Destructed 125 | . . . . . . . . . . . . 20 22 . 1 . . . 7 2 . 5 . 37 6 1 24 Prevented 102 | . . . . . . . . . . . . 10 13 . . . . . 26 9 . . . 3 33 5 3 Kills | -11 -10 -10 -10 -9 -8 -8 -8 -8 -7 -7 -7 -7 -7 -7 -6 -6 -6 -6 -6 -6 -6 -5 -5 -5 -5 -5 -4 ------- Run | Scr Mat Min Exi Min Mat Gar Mat Gar Fac Gar Fac Low Low Zio Pro Fac Was Fac Low Low Dat Pro Fac Upp Upp Zhi Pro Combat Hostiles Destroyed 434 | 1 11 16 . 7 39 37 14 18 31 17 3 18 21 . 1 41 1 60 16 8 4 2 14 21 18 . 15 Guns 149 | 1 5 1 . . 8 26 4 9 14 6 . . 3 . . 9 . 33 . . 1 . 8 10 8 . 3 Cannons 90 | . 3 4 . 1 3 . . 1 10 . . 1 2 . . 8 1 11 13 7 . 2 5 1 7 . 10 AOE 155 | . 3 11 . 6 25 11 10 8 7 9 . 15 14 . 1 16 . 6 . . . . 1 10 1 . 1 Classes Destroyed 22 | 1 6 3 . 1 2 1 1 . 3 . . 2 . . . . 1 . . . . . . . 1 . . Worker 15 | . . . . . 5 . . . 2 . . . . . . 3 . 5 . . . . . . . . . Builder 17 | . 1 2 . 1 4 . . . . . 1 . . . . 4 . 3 . . . . 1 . . . . Tunneler 6 | . . . . 1 . . 1 . . . . . . . . 2 . 2 . . . . . . . . . Hauler 13 | . 2 . . . 5 . . . 2 . . . . . . 1 . 3 . . . . . . . . . Recycler 30 | . 3 . . 1 4 . . . 6 . 1 . . . . 7 . 6 . . . . 2 . . . . Mechanic 1 | . . . . . . . . . . . . . . . . . . . . . . . . . 1 . . Operator 10 | . 2 . . . 4 . . . 1 . 1 . . . . 1 . 1 . . . . . . . . . Watcher 19 | . 3 . . . 5 . . . 1 . 2 . . . . 4 . 3 . . . . 1 . . . . Swarmer 111 | . 3 6 . 6 11 10 3 4 6 8 . 6 7 . . 12 . 5 1 1 . . . 15 1 . 6 Grunt 172 | 1 8 . . . 12 12 10 8 15 5 2 4 8 . . 12 . 32 10 5 . . 7 4 9 . 8 Brawler 17 | . . . . . . . . . 2 1 . 2 2 . . 3 . 2 . . . . . . 4 . 1 Duelist 14 | . . . . . . . 1 1 . . . 2 2 . . 1 . 2 3 . . . . . 2 . . Protector 1 | . . . . . . . . . 1 . . . . . . . . . . . . . . . . . . Sentry 63 | . . 2 . . 13 11 . 5 3 3 1 1 2 . . 6 . 8 2 1 . 1 1 2 1 . . Demolisher 1 | . . 1 . . . . . . . . . . . . . . . . . . . . . . . . . Specialist 1 | . . . . . . 1 . . . . . . . . . . . . . . . . . . . . . Hunter 14 | . . . . . 3 3 . . . . . . . . . 2 . 5 . . . . . . 1 . . Programmer 24 | . . . . . . . . . 4 . . 1 . . 1 5 . 6 . . . 1 6 . . . . Behemoth 1 | . . . . . . . . . . . . 1 . . . . . . . . . . . . . . . Compactor 1 | . . . . . . . . . . . . . . . . . 1 . . . . . . . . . . Enhanced Grunt 4 | . . . . . . . . . . . . . . . . . . . . . 4 . . . . . . Decomposer 2 | . . . . . . . . . . . . . . . 2 . . . . . . . . . . . . Packrat 1 | . . . . . . . . . . . . . . . . . . . . . . . . 1 . . . Assembled 7 | . . 7 . . . . . . . . . . . . . . . . . . . . . . . . . Thug 1 | . . . . . . . . . . . . . . . . . . . . 1 . . . . . . . Butcher 3 | . . . . . . . . . . . . . . . . . . . . 3 . . . . . . . Mutant 2 | . . . . . . . . . . . . 1 . . . . . . . 1 . . . . . . . Best Kill Streak 12 | 1 4 6 . 4 11 5 7 5 7 10 3 12 6 . 1 7 1 8 6 3 2 1 8 7 7 . 4 Combat Bots Only 12 | 1 4 6 . 4 8 5 6 5 4 10 3 12 6 . 1 6 1 7 6 3 2 1 5 7 7 . 4 Max Kills in Single Turn 5 | 1 1 4 . 3 3 4 2 2 2 3 1 3 4 . 1 5 1 3 1 1 1 1 2 3 1 . 1 Gunslinging 1 | . . . . . . 1 . 1 . . . . . . . . . . . . . . . . . . . Exploded 4 | . 1 4 . 3 3 4 2 2 2 3 . 3 4 . 1 3 . 3 . . . . 1 3 1 . 1 Melee . | . . . . . . . . . . . . . . . . . . . . . . . . . . . . Uniques/NPCs Destroyed 1 | . . . . 1 . . . . . . . . . . . . . . . . . . . . . . . YI-UF0 (-9/Mines) Combat | -11 -10 -10 -10 -9 -8 -8 -8 -8 -7 -7 -7 -7 -7 -7 -6 -6 -6 -6 -6 -6 -6 -5 -5 -5 -5 -5 -4 -------- Run | Scr Mat Min Exi Min Mat Gar Mat Gar Fac Gar Fac Low Low Zio Pro Fac Was Fac Low Low Dat Pro Fac Upp Upp Zhi Pro Damage Taken 30903 | 54 336 577 . 180 1180 1397 518 552 1724 1142 198 1199 1002 480 29 2395 76 6561 765 525 1207 157 1134 1264 1805 . 4446 Core 3081 | 21 47 61 . 32 135 157 72 121 209 142 13 111 118 . . 174 . 318 134 48 50 28 40 99 170 . 781 Absorbed by Shields 24 | . . . . . . . . . . . . . . . . . . 24 . . . . . . . . . Core Remaining (%) 32 | 91 . . . 35 . . . 11 . . . . . . 15 . . . . . . 11 . . . . . Volleys Fired 1490 | 5 55 26 . 13 142 115 33 43 117 44 23 27 36 . 8 158 18 216 34 29 116 7 47 40 64 28 46 Largest 3 | 2 2 2 . 2 2 2 2 2 2 2 2 2 2 . 1 2 2 2 2 2 2 2 3 3 3 1 3 Hottest 230 | 70 112 112 . 112 89 58 56 88 105 113 120 124 99 . 69 170 120 150 150 150 150 123 156 151 181 88 230 Shots Fired 2526 | 10 96 43 . 25 211 190 46 66 220 59 34 38 41 . 8 254 36 400 68 58 138 14 118 81 133 28 111 Gun 1369 | 10 70 3 . 1 102 159 29 41 148 39 29 16 22 . . 130 18 265 . . 18 7 72 58 80 . 52 Cannon 864 | . 19 33 . 12 31 . . 9 64 . . 10 7 . 5 79 18 135 68 58 120 7 46 9 47 28 59 Launcher 291 | . 7 7 . 12 78 31 17 16 6 20 5 12 12 . 3 45 . . . . . . . 14 6 . . Special 2 | . . . . . . . . . 2 . . . . . . . . . . . . . . . . . . Kinetic 1040 | 5 57 3 . 1 102 159 29 35 86 20 3 . 10 . . 25 18 203 . . 18 7 72 58 64 . 65 Thermal 452 | 5 13 . . . . . . 6 60 1 . . . . . 86 18 46 . . 94 7 46 9 28 . 33 Explosive 199 | . 7 7 . 11 37 31 17 16 6 6 5 12 6 . 3 35 . . . . . . . . . . . Electromagnetic 835 | . 19 33 . 13 72 . . 9 68 32 26 26 25 . 5 108 . 151 68 58 26 . . 14 41 28 13 Robot Hit Streak 44 | 6 9 9 . 8 38 34 11 23 29 20 16 15 11 . 3 44 29 41 22 16 18 4 17 13 26 9 9 Robot Miss Streak 6 | 1 6 2 . 1 4 2 1 2 4 1 2 1 2 . 1 3 2 4 2 4 1 3 3 2 2 2 3 Penetration Max 1 | . . . . . 1 1 . . 1 . . . . . . . . 1 . . . . 1 1 1 . 1 Secondary Targets 13 | . 1 . . . . 4 . 1 . . . . . . . 1 . 3 . . . . . 1 1 . 1 Max Gunslinging Chain 1 | . 1 . . . . 1 . 1 . . . . . . . 1 . 1 . . . . . 1 1 . 1 Shots Hit Robots 1653 | 8 57 27 . 8 108 132 25 45 159 45 23 29 32 . 4 185 33 312 47 35 33 7 69 46 96 23 65 Core Hits 1015 | 2 34 25 . 14 107 71 35 33 79 35 15 33 40 . 2 110 4 164 27 21 10 4 31 33 42 18 26 Critical Hits 41 | . . . . . 1 5 . 2 3 . . . 1 . . 3 2 3 . . 2 . 6 6 1 . 6 Critical Kills 20 | . . . . . 1 2 . 1 . . . . 1 . . 2 1 1 . . 1 . 2 4 . . 4 Critical Parts Destroyed 19 | . . . . . . 3 . 1 2 . . . . . . 1 1 2 . . 1 . 4 1 1 . 2 Melee Attacks . | . . . . . . . . . . . . . . . . . . . . . . . . . . . . Impact . | . . . . . . . . . . . . . . . . . . . . . . . . . . . . Slashing . | . . . . . . . . . . . . . . . . . . . . . . . . . . . . Piercing . | . . . . . . . . . . . . . . . . . . . . . . . . . . . . Sneak Attacks . | . . . . . . . . . . . . . . . . . . . . . . . . . . . . Combat Hostiles . | . . . . . . . . . . . . . . . . . . . . . . . . . . . . Follow-up Attacks . | . . . . . . . . . . . . . . . . . . . . . . . . . . . . Damage Inflicted 56739 | 99 1115 931 . 486 5002 3589 1571 2087 3908 1909 599 1865 1705 . 141 7600 1053 9468 1482 1224 681 263 2725 1606 2944 488 2198 Guns 20604 | 99 462 17 . 18 1185 2387 444 609 2070 599 509 203 258 . . 2366 379 4629 . . 355 47 1223 854 1343 . 548 Cannons 16942 | . 352 373 . 148 599 . . 151 1240 . . 211 144 . 90 2376 674 3084 1482 1056 326 216 1230 145 1253 488 1304 Explosions 19193 | . 301 541 . 320 3218 1202 1127 1327 598 1310 90 1451 1303 . 51 2858 . 1755 . 168 . . 272 607 348 . 346 Melee . | . . . . . . . . . . . . . . . . . . . . . . . . . . . . Ramming . | . . . . . . . . . . . . . . . . . . . . . . . . . . . . Kinetic 15691 | 48 387 17 . 18 1185 2387 444 507 1328 342 19 . 130 . . 347 379 3653 . . 355 47 1223 854 1138 . 883 Thermal 11183 | 51 117 78 . . 460 . . 102 1252 58 . 78 60 . . 2732 674 1686 . 168 . 216 1502 400 659 . 890 Explosive 13165 | . 259 463 . 307 1990 1202 1127 1327 424 712 70 1373 819 . 51 2151 . 890 . . . . . . . . . Electromagnetic 16700 | . 352 373 . 161 1367 . . 151 904 797 510 414 696 . 90 2370 . 3239 1482 1056 326 . . 352 1147 488 425 Impact . | . . . . . . . . . . . . . . . . . . . . . . . . . . . . Slashing . | . . . . . . . . . . . . . . . . . . . . . . . . . . . . Piercing . | . . . . . . . . . . . . . . . . . . . . . . . . . . . . Highest Corruption 10 | . . . . . 1 1 1 1 . 1 1 1 . . . 2 . 5 3 . . . 4 4 4 . 10 Average Corruption 1 | . . . . . 1 1 1 1 . 1 1 1 . . . 1 . 2 1 . . . 1 2 2 . 8 Corruption Purged 18 | . . . . . . . . . . . . 1 . . . 3 . 2 3 . . . . 4 5 . . Effects 110 | . . . . . 3 6 1 9 . 2 3 3 . . . 12 . 43 9 . . . 7 7 4 . 1 Message Errors 45 | . . . . . 2 2 . 5 . 1 1 2 . . . 5 . 17 3 . . . 2 3 2 . . Matter Fused 9 | . . . . . . . . . . . . . . . . . . 5 2 . . . 1 1 . . . Heat Flow Errors 6 | . . . . . . . . . . . . . . . . 1 . 2 2 . . . . 1 . . . Energy Discharges 12 | . . . . . 1 1 . 2 . 1 . . . . . 3 . 3 . . . . 1 . . . . Data Loss (minor) 20 | . . . . . . 2 1 . . . 1 1 . . . 2 . 6 2 . . . 1 2 2 . . Targeting Errors 15 | . . . . . . 1 . 1 . . 1 . . . . 1 . 9 . . . . 2 . . . . Weapon Failures 3 | . . . . . . . . 1 . . . . . . . . . 1 . . . . . . . . 1 Overload Shots . | . . . . . . . . . . . . . . . . . . . . . . . . . . . . Overflow Damage 1468 | . 62 . . 27 136 76 22 30 42 5 . 72 6 . 37 266 . 253 . 7 . . 146 41 . 122 118 Projectiles 589 | . . . . 11 24 . . . 16 . . . 5 . 37 146 . 94 . 7 . . 87 12 . 122 28 Explosions 879 | . 62 . . 16 112 76 22 30 26 5 . 72 1 . . 120 . 159 . . . . 59 29 . . 90 Melee . | . . . . . . . . . . . . . . . . . . . . . . . . . . . . Knockbacks 11 | . . . . . . . . . . . . . . . . . . 11 . . . . . . . . . Impact . | . . . . . . . . . . . . . . . . . . . . . . . . . . . . Kinetic 8 | . . . . . . . . . . . . . . . . . . 8 . . . . . . . . . Secondary 3 | . . . . . . . . . . . . . . . . . . 3 . . . . . . . . . Self-Inflicted Damage 1610 | . 67 106 . 37 58 66 58 33 53 51 20 126 78 . . 219 . 360 . 31 . . 164 . . . 83 Shots 46 | . 3 4 . 1 4 3 2 2 1 1 1 5 5 . . 6 . 4 . 1 . . 2 . . . 1 Rammed . | . . . . . . . . . . . . . . . . . . . . . . . . . . . . Targets Rammed . | . . . . . . . . . . . . . . . . . . . . . . . . . . . . Kicked . | . . . . . . . . . . . . . . . . . . . . . . . . . . . . Crushed . | . . . . . . . . . . . . . . . . . . . . . . . . . . . . Highest Temperature 631 | 69 112 221 . 134 112 44 17 411 355 188 453 200 135 . 60 282 . 419 584 39 262 102 378 112 123 192 631 Average Temperature 69 | 40 30 85 . 34 18 7 4 148 58 39 139 69 45 . 24 62 . 97 185 14 69 34 93 40 37 92 170 Received Heat Transfer 7060 | 30 129 36 . . 279 378 216 189 501 285 54 217 117 . . 522 . 1788 207 177 156 18 207 306 435 . 813 Effects 17 | . . . . . . . . . . . 5 . . . . . . 3 3 . . . 1 . . . 5 Shutdowns 2 | . . . . . . . . . . . 1 . . . . . . 1 . . . . . . . . . Interference 5 | . . . . . . . . . . . 2 . . . . . . . . . . . 1 . . . 2 Matter Decay 1 | . . . . . . . . . . . . . . . . . . . . . . . . . . . 1 Short Circuit 4 | . . . . . . . . . . . 2 . . . . . . 1 1 . . . . . . . . Damage (minor) 3 | . . . . . . . . . . . . . . . . . . 1 2 . . . . . . . . Damage (core) 2 | . . . . . . . . . . . . . . . . . . . . . . . . . . . 2 Siege Activations . | . . . . . . . . . . . . . . . . . . . . . . . . . . . . Robots Corrupted 44 | . . . . . 3 . . . . 2 3 2 2 . . 8 . 11 3 3 3 . . . 2 1 1 Combat Hostiles 39 | . . . . . 3 . . . . 2 3 2 2 . . 7 . 10 3 1 3 . . . 2 . 1 Parts Fried 129 | . 1 1 . . 12 . . 1 5 5 9 3 4 . . 18 . 26 17 6 5 . . 2 10 1 3 Impact Corruptions . | . . . . . . . . . . . . . . . . . . . . . . . . . . . . Robots Melted 1 | . . . . . . . . . . . . . . . . 1 . . . . . . . . . . . Combat Hostiles 1 | . . . . . . . . . . . . . . . . 1 . . . . . . . . . . . Parts Melted 19 | . . . . . . . . . 6 . . . . . . 11 . 1 . 1 . . . . . . . Heat Transferred 12506 | 148 272 100 . . 350 . . 222 2091 87 . 50 100 . . 3172 850 1799 . 150 . 100 1050 475 450 . 1040 Parts Sabotaged . | . . . . . . . . . . . . . . . . . . . . . . . . . . . . Parts Stolen . | . . . . . . . . . . . . . . . . . . . . . . . . . . . . Parts Stripped . | . . . . . . . . . . . . . . . . . . . . . . . . . . . . Power Chain Reactions 27 | . 1 2 . . 6 . . . 2 1 . 1 1 . . 4 . 4 . 1 . . . 2 1 . 1 Missiles Intercepted . | . . . . . . . . . . . . . . . . . . . . . . . . . . . . Alert | -11 -10 -10 -10 -9 -8 -8 -8 -8 -7 -7 -7 -7 -7 -7 -6 -6 -6 -6 -6 -6 -6 -5 -5 -5 -5 -5 -4 ------- Run | Scr Mat Min Exi Min Mat Gar Mat Gar Fac Gar Fac Low Low Zio Pro Fac Was Fac Low Low Dat Pro Fac Upp Upp Zhi Pro Peak Influence 1842 | 20 201 159 . 136 801 1842 1343 1480 1053 1050 1117 . . . . 999 350 1568 . . . . 969 . . . . Initial 897 | . 13 . . . 3 497 897 872 777 618 550 . . . . . 349 231 . . . . . . . . . Average 610 | . 61 38 . 49 489 1218 1095 1300 792 921 649 . . . . 343 344 796 . . . . 441 . . . . Maximum Alert Level 5 | . 1 . . . 3 5 4 4 3 3 4 . . . . 3 1 4 . . . . 3 . . . . Low Security (%) 25 | 100 99 100 . 100 5 . . . . . . . . . . 38 . . . . . . 40 . . . . Level 1 10 | . . . . . 33 . . . . . 12 . . . . 17 100 15 . . . . . . . . . Level 2 25 | . . . . . 47 11 . . 23 22 60 . . . . 32 . 34 . . . . 29 . . . . Level 3 23 | . . . . . 13 35 36 20 76 77 20 . . . . 11 . 18 . . . . 30 . . . . Level 4 13 | . . . . . . 26 63 79 . . 7 . . . . . . 30 . . . . . . . . . Level 5 2 | . . . . . . 26 . . . . . . . . . . . . . . . . . . . . . High Security . | . . . . . . . . . . . . . . . . . . . . . . . . . . . . Max Security . | . . . . . . . . . . . . . . . . . . . . . . . . . . . . Squads Dispatched 58 | . 2 . . . 9 . 4 . 9 . 1 . 1 . . 10 . 16 . . . . 5 . 1 . . Investigation 4 | . . . . . 1 . . . 1 . . . . . . . . 2 . . . . . . . . . Extermination 17 | . . . . . . . . . 4 . 1 . . . . 4 . 5 . . . . 3 . . . . Reinforcement 24 | . 2 . . . 5 . 3 . 3 . . . . . . 4 . 5 . . . . 2 . . . . Assault 8 | . . . . . . . . . 1 . . . 1 . . 1 . 4 . . . . . . 1 . . Garrison 5 | . . . . . 3 . 1 . . . . . . . . 1 . . . . . . . . . . . Intercept . | . . . . . . . . . . . . . . . . . . . . . . . . . . . . Construction Impeded 9 | . . . . . 2 . 1 . . . . . . . . 3 . 2 . . . . 1 . . . . Haulers Reinforced 5 | . . . . . . . . . 1 . . . . . . . . 3 . . . . 1 . . . . Stealth | -11 -10 -10 -10 -9 -8 -8 -8 -8 -7 -7 -7 -7 -7 -7 -6 -6 -6 -6 -6 -6 -6 -5 -5 -5 -5 -5 -4 --------- Run | Scr Mat Min Exi Min Mat Gar Mat Gar Fac Gar Fac Low Low Zio Pro Fac Was Fac Low Low Dat Pro Fac Upp Upp Zhi Pro Distress Signals 13 | . 2 . . . 2 . 2 . . . 1 . . . . 1 . 5 . . . . . . . . . Communications Jammed . | . . . . . . . . . . . . . . . . . . . . . . . . . . . . Distress Signals . | . . . . . . . . . . . . . . . . . . . . . . . . . . . . Times Spotted 564 | 1 22 19 . 10 51 35 20 22 45 15 10 16 29 8 1 58 7 87 16 8 4 2 23 15 20 . 20 Peak Tracking Total 13 | 1 3 5 . 4 5 7 5 6 5 6 4 9 13 5 1 6 5 6 7 3 3 1 7 7 8 . 10 Tactical Retreats 44 | . 2 1 . . 1 3 . 4 5 . . . 5 3 . 5 1 4 3 1 . . 3 . 1 . 2 Traps | -11 -10 -10 -10 -9 -8 -8 -8 -8 -7 -7 -7 -7 -7 -7 -6 -6 -6 -6 -6 -6 -6 -5 -5 -5 -5 -5 -4 ------- Run | Scr Mat Min Exi Min Mat Gar Mat Gar Fac Gar Fac Low Low Zio Pro Fac Was Fac Low Low Dat Pro Fac Upp Upp Zhi Pro Traps Triggered 18 | . . . . . 2 3 . 5 1 . . . . . . 4 . 3 . . . . . . . . . Indirectly . | . . . . . . . . . . . . . . . . . . . . . . . . . . . . Trap Hack Attempts . | . . . . . . . . . . . . . . . . . . . . . . . . . . . . Triggered . | . . . . . . . . . . . . . . . . . . . . . . . . . . . . Disarmed . | . . . . . . . . . . . . . . . . . . . . . . . . . . . . Reprogrammed . | . . . . . . . . . . . . . . . . . . . . . . . . . . . . Reused . | . . . . . . . . . . . . . . . . . . . . . . . . . . . . Traps Extracted . | . . . . . . . . . . . . . . . . . . . . . . . . . . . . Installed 1 | . . 1 . . . . . . . . . . . . . . . . . . . . . . . . . Triggered 1 | . . . . . . . . . 1 . . . . . . . . . . . . . . . . . . Machines | -11 -10 -10 -10 -9 -8 -8 -8 -8 -7 -7 -7 -7 -7 -7 -6 -6 -6 -6 -6 -6 -6 -5 -5 -5 -5 -5 -4 ---------- Run | Scr Mat Min Exi Min Mat Gar Mat Gar Fac Gar Fac Low Low Zio Pro Fac Was Fac Low Low Dat Pro Fac Upp Upp Zhi Pro Machines Disabled 117 | . 3 1 . 3 17 10 3 3 4 3 6 3 . . . 14 . 26 1 2 1 . 4 4 3 2 4 Max in Single Turn 4 | . 1 . . 1 3 2 2 1 1 2 4 2 . . . 2 . 4 1 1 1 . 3 1 1 1 4 Garrison Access 4 | . . . . . . . . . . . 1 . . . . 2 . 1 . . . . . . . . . Garrison Relay 6 | . . . . . . 3 . 2 . 1 . . . . . . . . . . . . . . . . . Phase Generator 1 | . . . . . . 1 . . . . . . . . . . . . . . . . . . . . . Machines Sabotaged . | . . . . . . . . . . . . . . . . . . . . . . . . . . . . Garrisons Compromised . | . . . . . . . . . . . . . . . . . . . . . . . . . . . . Overloaded Fab Kills . | . . . . . . . . . . . . . . . . . . . . . . . . . . . . Fab Network Shutdowns 2 | . . . . . . . . . . . 1 . . . . . . . . . . . 1 . . . . Hacking | -11 -10 -10 -10 -9 -8 -8 -8 -8 -7 -7 -7 -7 -7 -7 -6 -6 -6 -6 -6 -6 -6 -5 -5 -5 -5 -5 -4 --------- Run | Scr Mat Min Exi Min Mat Gar Mat Gar Fac Gar Fac Low Low Zio Pro Fac Was Fac Low Low Dat Pro Fac Upp Upp Zhi Pro Machines Accessed 85 | . 5 . 1 1 13 . 1 . 7 . 7 . . . . 14 . 16 1 . 4 . 3 3 1 8 . Terminals 45 | . 5 . . 1 9 . . . 5 . 5 . . . . 10 . 9 . . . . 1 . . . . Fabricators 7 | . . . . . . . . . 1 . 1 . . . . 1 . 3 . . . . 1 . . . . Repair Stations 3 | . . . . . 1 . . . . . . . . . . . . 1 . . . . 1 . . . . Recycling Units 3 | . . . . . 1 . . . . . . . . . . 1 . 1 . . . . . . . . . Scanalyzers 2 | . . . . . 1 . . . . . . . . . . . . 1 . . . . . . . . . Garrison Access 7 | . . . . . 1 . 1 . 1 . 1 . . . . 2 . 1 . . . . . . . . . Total Hacks 265 | . 16 . 1 2 33 . 2 . 22 . 26 . . . . 34 . 48 1 . 29 . 7 9 1 34 . Successful 172 | . 9 . 1 1 21 . 2 . 10 . 15 . . . . 14 . 21 1 . 29 . 4 9 1 34 . Failed 93 | . 7 . . 1 12 . . . 12 . 11 . . . . 20 . 27 . . . . 3 . . . . Catastrophic 16 | . . . . . 1 . . . 1 . 2 . . . . 8 . 3 . . . . 1 . . . . Database Lockouts . | . . . . . . . . . . . . . . . . . . . . . . . . . . . . Manual 84 | . 10 . 1 1 16 . . . 15 . 18 . . . . 6 . 16 . . . . 1 . . . . Terminals 134 | . 16 . . 2 23 . . . 16 . 24 . . . . 27 . 25 . . . . 1 . . . . Fabricators 21 | . . . . . . . . . 3 . 1 . . . . 4 . 9 . . . . 4 . . . . Repair Stations 10 | . . . . . 4 . . . . . . . . . . . . 4 . . . . 2 . . . . Recycling Units 7 | . . . . . 1 . . . . . . . . . . 1 . 5 . . . . . . . . . Scanalyzers 6 | . . . . . 2 . . . . . . . . . . . . 4 . . . . . . . . . Garrison Access 12 | . . . . . 3 . 2 . 3 . 1 . . . . 2 . 1 . . . . . . . . . Terminal Hacks 127 | . 9 . 1 1 10 . . . 5 . 12 . . . . 8 . 7 1 . 29 . . 9 1 34 . Record 45 | . 1 . . . . . . . . . 1 . . . . . . 2 . . 11 . . 7 1 22 . Part Schematic 16 | . 2 . . . . . . . . . 1 . . . . . . . . . 9 . . . . 4 . Robot Schematic 6 | . . . . . . . . . . . . . . . . . . . . . 6 . . . . . . Robot Analysis 6 | . . . . . 1 . . . . . . . . . . 1 . . . . . . . . . 4 . Prototype ID Bank 20 | . 2 . . . 5 . . . . . 2 . . . . 4 . . . . 3 . . . . 4 . Open Door 3 | . . . . . . . . . . . . . . . . . . . 1 . . . . 2 . . . Branch Access Points 4 | . 1 . . . 1 . . . . . 1 . . . . . . 1 . . . . . . . . . Terminal Index 5 | . . . . . 1 . . . 1 . 1 . . . . 1 . 1 . . . . . . . . . Fabricator Index 1 | . . . . . . . . . . . . . . . . . . 1 . . . . . . . . . Garrison Index 2 | . . . . . . . . . 1 . 1 . . . . . . . . . . . . . . . . Unreport Threat 10 | . 1 . . . 2 . . . 3 . 3 . . . . . . 1 . . . . . . . . . Locate Traps 1 | . . . . . . . . . . . . . . . . . . 1 . . . . . . . . . Dispatch Records 1 | . 1 . . . . . . . . . . . . . . . . . . . . . . . . . . Recall Extermination 1 | . . . . . . . . . . . 1 . . . . . . . . . . . . . . . . Zone Layout 5 | . 1 . . 1 . . . . . . 1 . . . . 2 . . . . . . . . . . . EX-Prototype ID Bank 1 | . . . 1 . . . . . . . . . . . . . . . . . . . . . . . . Fabricator Hacks 13 | . . . . . . . . . 2 . 1 . . . . 4 . 4 . . . . 2 . . . . Load Schematic 6 | . . . . . . . . . 1 . . . . . . 2 . 2 . . . . 1 . . . . Build 7 | . . . . . . . . . 1 . 1 . . . . 2 . 2 . . . . 1 . . . . Repair Station Hacks 8 | . . . . . 4 . . . . . . . . . . . . 2 . . . . 2 . . . . Scan Component 4 | . . . . . 2 . . . . . . . . . . . . 1 . . . . 1 . . . . Repair 4 | . . . . . 2 . . . . . . . . . . . . 1 . . . . 1 . . . . Recycling Unit Hacks 4 | . . . . . 1 . . . . . . . . . . . . 3 . . . . . . . . . Process 1 | . . . . . . . . . . . . . . . . . . 1 . . . . . . . . . Report Inventory 2 | . . . . . 1 . . . . . . . . . . . . 1 . . . . . . . . . Retrieve Matter 1 | . . . . . . . . . . . . . . . . . . 1 . . . . . . . . . Scanalyzer 4 | . . . . . 2 . . . . . . . . . . . . 2 . . . . . . . . . Insert Component 2 | . . . . . 1 . . . . . . . . . . . . 1 . . . . . . . . . Analyze 2 | . . . . . 1 . . . . . . . . . . . . 1 . . . . . . . . . Garrison Access Hacks 9 | . . . . . 2 . 2 . 1 . 1 . . . . 2 . 1 . . . . . . . . . Unlock Access 3 | . . . . . 1 . 1 . 1 . . . . . . . . . . . . . . . . . . Seal Access 4 | . . . . . . . . . . . 1 . . . . 2 . 1 . . . . . . . . . Coupler Status 2 | . . . . . 1 . 1 . . . . . . . . . . . . . . . . . . . . Unauthorized Hacks 7 | . . . . . 2 . . . 2 . 1 . . . . . . 2 . . . . . . . . . Terminals 7 | . . . . . 2 . . . 2 . 1 . . . . . . 2 . . . . . . . . . Assimilate 2 | . . . . . 1 . . . 1 . . . . . . . . . . . . . . . . . . Botnet 5 | . . . . . 1 . . . 1 . 1 . . . . . . 2 . . . . . . . . . Fabricators . | . . . . . . . . . . . . . . . . . . . . . . . . . . . . Repair Stations . | . . . . . . . . . . . . . . . . . . . . . . . . . . . . Recycling Units . | . . . . . . . . . . . . . . . . . . . . . . . . . . . . Scanalyzers . | . . . . . . . . . . . . . . . . . . . . . . . . . . . . Garrison Access . | . . . . . . . . . . . . . . . . . . . . . . . . . . . . Data Cores Recovered 1 | . . . . . . . . . 1 . . . . . . . . . . . . . . . . . . Used . | . . . . . . . . . . . . . . . . . . . . . . . . . . . . Hacking Detections 59 | . 5 . . 1 12 . 1 . 7 . 5 . . . . 12 . 14 . . . . 2 . . . . Full Trace Events 5 | . 1 . . . 1 . . . 1 . . . . . . . . 2 . . . . . . . . . Feedback Events . | . . . . . . . . . . . . . . . . . . . . . . . . . . . . Feedback Blocked . | . . . . . . . . . . . . . . . . . . . . . . . . . . . . Robot Schematics Acquired 6 | . . . . . . . . . . . . . . . . . . . . . 6 . . . . . . Robots Built . | . . . . . . . . . . . . . . . . . . . . . . . . . . . . Matter . | . . . . . . . . . . . . . . . . . . . . . . . . . . . . Time . | . . . . . . . . . . . . . . . . . . . . . . . . . . . . Total Robot Build Rating . | . . . . . . . . . . . . . . . . . . . . . . . . . . . . Part Schematics Acquired 18 | . 2 . . . 1 . . . . . 1 . . . . . . 1 . . 9 . . . . 4 . Parts Built 8 | . . . . . . . . . 1 . 1 . . . . 3 . 2 . . . . 1 . . . . Matter 1029 | . . . . . . . . . 124 . 212 . . . . 204 . 204 . . . . 285 . . . . Time 493 | . . . . . . . . . 31 . 106 . . . . 102 . 102 . . . . 152 . . . . Total Part Build Rating 18 | . . . . . . . . . 2 . 6 . . . . 3 . 2 . . . . 5 . . . . Parts Repaired 4 | . . . . . 2 . . . . . . . . . . . . 1 . . . . 1 . . . . Time 175 | . . . . . 106 . . . . . . . . . . . . 25 . . . . 44 . . . . Parts Recycled . | . . . . . . . . . . . . . . . . . . . . . . . . . . . . Recycled Matter 105 | . . . . . . . . . . . . . . . . . . 105 . . . . . . . . . Retrieved Matter 105 | . . . . . . . . . . . . . . . . . . 105 . . . . . . . . . Retrieved Components . | . . . . . . . . . . . . . . . . . . . . . . . . . . . . Parts Scanalyzed 2 | . . . . . 1 . . . . . . . . . . . . 1 . . . . . . . . . Part Schematics Acquired 2 | . . . . . 1 . . . . . . . . . . . . 1 . . . . . . . . . Parts Damaged 1 | . . . . . 1 . . . . . . . . . . . . . . . . . . . . . . Bothacking | -11 -10 -10 -10 -9 -8 -8 -8 -8 -7 -7 -7 -7 -7 -7 -6 -6 -6 -6 -6 -6 -6 -5 -5 -5 -5 -5 -4 ------------ Run | Scr Mat Min Exi Min Mat Gar Mat Gar Fac Gar Fac Low Low Zio Pro Fac Was Fac Low Low Dat Pro Fac Upp Upp Zhi Pro Used RIF Installer 3 | . . . . . . 1 . 1 . 1 . . . . . . . . . . . . . . . . . Command Fork 1 | . . . . . . . . . . 1 . . . . . . . . . . . . . . . . . Alert ID Control 1 | . . . . . . . . 1 . . . . . . . . . . . . . . . . . . . Robots Hacked . | . . . . . . . . . . . . . . . . . . . . . . . . . . . . Non-combat . | . . . . . . . . . . . . . . . . . . . . . . . . . . . . Combat . | . . . . . . . . . . . . . . . . . . . . . . . . . . . . Robot Hacks Applied . | . . . . . . . . . . . . . . . . . . . . . . . . . . . . Relay Couplers Released 29 | . . . . . . 13 . 8 . 5 . . . . . 3 . . . . . . . . . . . Machine Destruction 26 | . . . . . . 13 . 8 . 5 . . . . . . . . . . . . . . . . . Programmers 3 | . . . . . . . . . . . . . . . . 3 . . . . . . . . . . . Robots Rewired . | . . . . . . . . . . . . . . . . . . . . . . . . . . . . Allies Hacked . | . . . . . . . . . . . . . . . . . . . . . . . . . . . . Hacks Repelled . | . . . . . . . . . . . . . . . . . . . . . . . . . . . . Allies | -11 -10 -10 -10 -9 -8 -8 -8 -8 -7 -7 -7 -7 -7 -7 -6 -6 -6 -6 -6 -6 -6 -5 -5 -5 -5 -5 -4 -------- Run | Scr Mat Min Exi Min Mat Gar Mat Gar Fac Gar Fac Low Low Zio Pro Fac Was Fac Low Low Dat Pro Fac Upp Upp Zhi Pro Total Allies 6 | . . 3 . 1 . . . . 1 . . . 1 . . . . . . . . . . . . . . Largest Group 3 | . . 3 . 1 . . . . 1 . . . 1 . . . . . . . . . . . . . . Highest-Rated Group 137 | . . 40 . 31 . . . . 10 . . . 137 . . . . . . . . . . . . . . Highest-Rated Ally 137 | . . 16 . 31 . . . . 10 . . . 137 . . . . . . . . . . . . . . Total Orders 8 | . . . . . . . . . . . . . . . . 2 . 6 . . . . . . . . . EXPLORE 8 | . . . . . . . . . . . . . . . . 2 . 6 . . . . . . . . . Ally Attacks 31 | . . 9 . 19 . . . . . . . . 3 . . . . . . . . . . . . . . Total Damage 628 | . . 70 . 272 . . . . . . . . 286 . . . . . . . . . . . . . . Kills 5 | . . 2 . 3 . . . . . . . . . . . . . . . . . . . . . . . Allies Corrupted . | . . . . . . . . . . . . . . . . . . . . . . . . . . . . Allies Melted . | . . . . . . . . . . . . . . . . . . . . . . . . . . . . Intel | -11 -10 -10 -10 -9 -8 -8 -8 -8 -7 -7 -7 -7 -7 -7 -6 -6 -6 -6 -6 -6 -6 -5 -5 -5 -5 -5 -4 ------- Run | Scr Mat Min Exi Min Mat Gar Mat Gar Fac Gar Fac Low Low Zio Pro Fac Was Fac Low Low Dat Pro Fac Upp Upp Zhi Pro Robot Analysis Total 6 | . . . . . 1 . . . . . . . . . . 1 . . . . . . . . . 4 . Derelict Logs Recovered 11 | . . 1 . . . . . . . . . 1 . . 1 . . . 2 1 . 1 . 1 3 . . Drone Launches 8 | . . . . . . . . . . . . . . . . 2 . 6 . . . . . . . . . Drone Recoveries 4 | . . . . . . . . . . . . . . . . . . 4 . . . . . . . . . Exploration | -11 -10 -10 -10 -9 -8 -8 -8 -8 -7 -7 -7 -7 -7 -7 -6 -6 -6 -6 -6 -6 -6 -5 -5 -5 -5 -5 -4 ------------- Run | Scr Mat Min Exi Min Mat Gar Mat Gar Fac Gar Fac Low Low Zio Pro Fac Was Fac Low Low Dat Pro Fac Upp Upp Zhi Pro Turns Passed 38303 | 84 1269 1320 1332 1090 2864 2072 201 1310 1990 641 1165 1291 1208 625 889 3189 194 3750 2077 957 855 535 1230 2172 2972 491 530 Spaces Moved 19393 | 60 686 624 739 560 1364 1025 48 619 901 310 598 724 701 355 539 1441 80 1609 1066 454 349 327 613 1409 1750 229 213 Core 15 | 15 . . . . . . . . . . . . . . . . . . . . . . . . . . . Treads 14129 | . 1 624 739 560 1364 1025 48 619 901 310 598 724 701 355 539 1441 80 1266 1066 454 79 . 32 . 228 183 192 Legs 5173 | 45 685 . . . . . . . . . . . . . . . . 267 . . 270 327 581 1409 1522 46 21 Wheels 76 | . . . . . . . . . . . . . . . . . . 76 . . . . . . . . . Hover . | . . . . . . . . . . . . . . . . . . . . . . . . . . . . Flight . | . . . . . . . . . . . . . . . . . . . . . . . . . . . . Fastest Speed 50 | 50 120 180 180 180 155 155 160 180 156 156 160 158 158 158 158 160 160 110 182 182 150 150 150 120 150 150 120 Average Speed 166 | 102 146 193 180 180 164 157 171 185 167 160 166 164 158 175 159 179 172 169 182 183 158 150 153 143 154 174 175 Slowest Speed 270 | 120 200 200 180 180 180 172 180 220 180 180 183 187 178 178 160 180 180 270 182 185 210 150 220 210 240 240 200 Overloaded Moves . | . . . . . . . . . . . . . . . . . . . . . . . . . . . . Propulsion Burnouts . | . . . . . . . . . . . . . . . . . . . . . . . . . . . . Robots Hopped . | . . . . . . . . . . . . . . . . . . . . . . . . . . . . Cave-ins Triggered 1 | . . . . . . . . . . . . . . . . . . . . . . . . . 1 . . Teleports 1 | . . . . . . . . . . . . . . . . . . . . . . . . . . 1 . Time Travels 1 | . . . . . 1 . . . . . . . . . . . . . . . . . . . . . . Exploration Rate (%) 62 | 6 87 83 94 99 93 97 11 72 30 54 14 76 82 14 71 43 73 44 96 55 99 53 10 97 98 62 28 Regions Visited 27 Branch Regions 15 Pre-discovered Areas 6 | . . 1 . . . . . . . . . . . . . . . . . . 1 . . . 1 3 . Known Exits Taken 19 | . 1 1 1 1 1 . 1 . 1 . 1 1 1 1 1 . . 1 1 1 1 1 1 1 . . . Unknown Exits Taken 3 | 1 . . . . . . . . . . . . . . . . . . . . . . . . 1 1 . Scrap Searched 33 | . . 1 . 2 . . . . . . . 5 2 . . . . . 5 9 . 1 . 3 5 . . Spaces Dug 274 | . 14 13 . 15 23 37 . 5 5 . . . . . . 68 . 51 . . 29 . 9 1 4 . . Terrain Destroyed 1841 | . 38 59 . 76 268 289 72 95 44 31 29 72 50 . 34 232 2 226 . 10 34 4 100 5 13 . 58 Melee . | . . . . . . . . . . . . . . . . . . . . . . . . . . . . Projectile 158 | . . . . . 1 11 1 2 . 1 . . 1 . . 7 2 14 . . 34 4 34 5 8 . 33 AOE 1683 | . 38 59 . 76 267 278 71 93 44 30 29 72 49 . 34 225 . 212 . 10 . . 66 . 5 . 25 Terrain Rammed . | . . . . . . . . . . . . . . . . . . . . . . . . . . . . Walls Destroyed . | . . . . . . . . . . . . . . . . . . . . . . . . . . . . Machines Disabled . | . . . . . . . . . . . . . . . . . . . . . . . . . . . . Actions | -11 -10 -10 -10 -9 -8 -8 -8 -8 -7 -7 -7 -7 -7 -7 -6 -6 -6 -6 -6 -6 -6 -5 -5 -5 -5 -5 -4 --------- Run | Scr Mat Min Exi Min Mat Gar Mat Gar Fac Gar Fac Low Low Zio Pro Fac Was Fac Low Low Dat Pro Fac Upp Upp Zhi Pro Total 23107 | 70 864 690 742 616 1796 1313 123 719 1192 389 737 781 756 356 554 1792 100 2240 1135 520 507 354 802 1483 1903 291 282 Wait 955 | . 57 13 . 25 159 133 33 16 78 14 78 1 . . . 53 . 161 4 9 9 9 102 . . 1 . Move 19363 | 59 685 623 738 559 1363 1023 47 617 900 308 597 723 700 354 538 1441 79 1608 1065 453 348 326 612 1408 1748 228 213 Hop . | . . . . . . . . . . . . . . . . . . . . . . . . . . . . Pick Up 272 | 1 21 4 2 4 31 5 3 6 20 1 8 4 5 . . 24 . 73 8 6 4 1 6 7 22 2 4 Fast Attach 132 | 5 7 2 . 1 9 3 . 3 6 . 3 . 1 . . 11 . 38 . 1 9 1 6 2 9 14 1 Attach 151 | . 2 4 . . 13 6 3 5 7 3 2 5 4 2 1 14 2 29 3 4 3 . 4 4 15 . 16 Detach 39 | . 1 2 . . 7 2 . 4 3 . 2 1 1 . . 4 . 7 . . 2 . 2 . 1 . . Swap 392 | . 16 11 . 9 42 19 4 12 34 16 12 15 6 . 7 55 1 41 12 10 9 8 13 15 19 4 2 Drop 299 | . 20 4 2 5 30 7 . 5 27 3 12 5 3 . . 30 . 65 9 8 7 2 10 7 24 14 . Fire 1490 | 5 55 26 . 13 142 115 33 43 117 44 23 27 36 . 8 158 18 216 34 29 116 7 47 40 64 28 46 Melee . | . . . . . . . . . . . . . . . . . . . . . . . . . . . . Ram . | . . . . . . . . . . . . . . . . . . . . . . . . . . . . Kick . | . . . . . . . . . . . . . . . . . . . . . . . . . . . . Crush . | . . . . . . . . . . . . . . . . . . . . . . . . . . . . Escape Stasis 13 | . . . . . . . . 8 . . . . . . . 2 . 2 . . . . . . 1 . . Rewire . | . . . . . . . . . . . . . . . . . . . . . . . . . . . . Trap 1 | . . 1 . . . . . . . . . . . . . . . . . . . . . . . . . Miscellaneous . | . . . . . . . . . . . . . . . . . . . . . . . . . . . . Route ------- -11/Scrapyard -10/Materials (discovered 5 exits: *Mat x3 / *Min x2) -10/Mines (discovered 3 exits: *Mat x2 / *Exi) -10/Exiles (discovered 2 exits: *Min x2) -9/Mines (discovered 2 exits: *Mat x2) -8/Materials (discovered 4 exits: *Fac x3 / Gar) -8/Garrison (discovered 3 exits: *Mat x3) -8/Materials -8/Garrison (discovered 3 exits: *Fac x3) -7/Factory (discovered 2 exits: *Fac / Gar) -7/Garrison (discovered 2 exits: *Fac x2) -7/Factory (discovered 2 exits: *Low x2) -7/Lower Caves -7/Lower Caves (discovered 3 exits: *Fac x2 / *Zio) -7/Zion -6/Proximity Caves -6/Factory (discovered 3 exits: *Fac x3) -6/Waste -6/Factory (discovered 4 exits: *Fac x2 / *Low x2) -6/Lower Caves -6/Lower Caves (discovered 2 exits: *Fac / *Dat) -6/Data Miner -5/Proximity Caves -5/Factory (discovered 2 exits: *Fac / *Upp) -5/Upper Caves -5/Upper Caves (discovered 2 exits: *Fac / *Zhi) -5/Zhirov -4/Proximity Caves History --------- Turn | Location | Event 2 | -11/Scrapyard | Met Revision 17 61 | -11/Scrapyard | Discovered new exit (range 8) 85 | -11/Scrapyard | Entered Materials 303 | -10/Materials | Discovered new exit (range 7) 305 | -10/Materials | Build established: Mutant 438 | -10/Materials | Discovered new exit (range 8) 585 | -10/Materials | Identified exit to Mines 735 | -10/Materials | Discovered new exit (range 9) 975 | -10/Materials | Discovered new exit (range 16) 1354 | -10/Materials | Entered Mines 1359 | -10/Mines | Met a Derelict bent on vengeance 1441 | -10/Mines | Assembled infested the area 1532 | -10/Mines | Discovered new exit (range 15) 1583 | -10/Mines | Identified exit to Materials 1627 | -10/Mines | Assisted by bots powering up and referring to "LRC-V3" 1902 | -10/Mines | Discovered exit to Materials (range 7) 2218 | -10/Mines | Build established: Scavenger-Mutant 2293 | -10/Mines | Core integrity fell below 50% 2502 | -10/Mines | Learned location of Storage (-9) 2552 | -10/Mines | Found a hidden stash of uninstalled traps 2666 | -10/Mines | Deemed a non-threat by the Exiles lab entrance 2666 | -10/Mines | Discovered new exit (range 5) 2672 | -10/Mines | Identified exit to Exiles 2674 | -10/Mines | Entered Exiles 2698 | -10/Exiles | Discovered new exit (range 15) 2721 | -10/Exiles | Identified exit to Mines 2752 | -10/Exiles | Met 8R-AWN 2781 | -10/Exiles | Met EX-HEX 2836 | -10/Exiles | Met EX-BIN 2929 | -10/Exiles | Build established: Mutant 3045 | -10/Exiles | Met EX-DEC 3139 | -10/Exiles | Aligned with FarCom system 3141 | -10/Exiles | Given EX-Vault access code 3182 | -10/Exiles | Opened EX-Vault 3199 | -10/Exiles | Found Chronowheel 3250 | -10/Exiles | Warned to stay clear of 0b10 Research branches 3530 | -10/Exiles | Visited The Gauntlet 3991 | -10/Exiles | Discovered exit to Mines (range 10) 4006 | -10/Exiles | Left Exiles lab with Chronowheel 4006 | -10/Exiles | Entered Mines 4064 | -9/Mines | Found a damaged Exp. Sensor Array with a note attached 4068 | -9/Mines | Found Prototype Device 4114 | -9/Mines | Discovered new exit (range 9) 4130 | -9/Mines | Identified exit to Materials 4297 | -9/Mines | Received a Mining Laser from a helpful Derelict 4570 | -9/Mines | Destroyed YI-UF0 4680 | -9/Mines | Received a Rocket Launcher from a helpful Derelict 4741 | -9/Mines | Discovered exit to Materials (range 15) 5096 | -9/Mines | Entered Materials 5096 | -8/Materials | Evolved 4 slots: Propulsion x1, Utility x3 5099 | -8/Materials | Identified Exp. Sensor Array 5404 | -8/Materials | Activated Chronowheel 5404 | -8/Materials | Spacetime reconverged on an earlier point 5445 | -8/Materials | Build established: Scavenger-Mutant 5518 | -8/Materials | Repaired Hcp. Storage Unit 5603 | -8/Materials | Repaired Exp. Sensor Array 6186 | -8/Materials | Discovered new exit (range 8) 6197 | -8/Materials | Identified exit to Factory 6321 | -8/Materials | Destroyed 8 combat bots 6930 | -8/Materials | Discovered exit to Factory (range 10) 7198 | -8/Materials | Build established: Mutant 7281 | -8/Materials | Identified exit to Garrison 7625 | -8/Materials | Discovered exit to Factory (range 16) 7960 | -8/Materials | Entered Garrison 7968 | -8/Garrison | Installed Relay Interface Framework 8056 | -8/Garrison | Triggered checkpoint 8196 | -8/Garrison | Triggered checkpoint 8388 | -8/Garrison | Discovered new exit (range 11) 8402 | -8/Garrison | Identified exit to Materials 8462 | -8/Garrison | Lost 3 parts (2n1w) 8500 | -8/Garrison | Triggered checkpoint 8532 | -8/Garrison | Garrison Relay disabled 8624 | -8/Garrison | Triggered checkpoint 8738 | -8/Garrison | Build established: Scavenger-Mutant 8816 | -8/Garrison | Discovered exit to Materials (range 14) 8953 | -8/Garrison | Core integrity fell below 50% 9101 | -8/Garrison | Triggered checkpoint 9158 | -8/Garrison | Garrison Relay disabled 9259 | -8/Garrison | Phase Generator disabled 9478 | -8/Garrison | Triggered checkpoint 9616 | -8/Garrison | Triggered checkpoint 9710 | -8/Garrison | Garrison Relay disabled 9748 | -8/Garrison | Discovered exit to Materials (range 10) 10032 | -8/Garrison | Entered Materials 10149 | -8/Materials | Garrison activated, responded to threat 10231 | -8/Materials | Identified exit to Garrison 10233 | -8/Materials | Entered Garrison 10260 | -8/Garrison | Triggered checkpoint 10306 | -8/Garrison | Garrison Relay disabled 10444 | -8/Garrison | Triggered checkpoint 10490 | -8/Garrison | Triggered checkpoint 10544 | -8/Garrison | Triggered checkpoint 10588 | -8/Garrison | Discovered exit to Factory (range 10) 10691 | -8/Garrison | Garrison Relay disabled 10771 | -8/Garrison | Core integrity fell below 20% 10850 | -8/Garrison | Triggered checkpoint 10892 | -8/Garrison | Triggered checkpoint 10976 | -8/Garrison | Discovered exit to Factory (range 15) 11024 | -8/Garrison | Expanded RIF knowledge: Alert ID Control 11152 | -8/Garrison | Discovered exit to Factory (range 8) 11223 | -8/Garrison | Build established: Mutant 11543 | -8/Garrison | Entered Factory 11543 | -7/Factory | Evolved 2 slots: Propulsion x1, Utility x1 11837 | -7/Factory | Build established: Scavenger-Skirmisher 11943 | -7/Factory | First assault squad dispatched 12338 | -7/Factory | Discovered new exit (range 16) 12362 | -7/Factory | Build established: Scavenger-Mutant 12437 | -7/Factory | Identified exit to Factory 12543 | -7/Factory | Fabricated Rocket Launcher (x1) 12934 | -7/Factory | Build established: Hacker-Mutant 13450 | -7/Factory | Identified exit to Garrison 13493 | -7/Factory | Build established: Scavenger-Mutant 13533 | -7/Factory | Entered Garrison 13596 | -7/Garrison | Triggered checkpoint 13610 | -7/Garrison | Garrison Relay disabled 13663 | -7/Garrison | Triggered checkpoint 13674 | -7/Garrison | Triggered checkpoint 13726 | -7/Garrison | Triggered checkpoint 13769 | -7/Garrison | Destroyed 10 combat bots 13770 | -7/Garrison | Lost 3 parts (2n1w) 13839 | -7/Garrison | Triggered checkpoint 13844 | -7/Garrison | Core integrity fell below 50% 13978 | -7/Garrison | Discovered new exit (range 12) 13995 | -7/Garrison | Identified exit to Factory 14006 | -7/Garrison | Expanded RIF knowledge: Command Fork 14163 | -7/Garrison | Discovered exit to Factory (range 3) 14174 | -7/Garrison | Entered Factory 14306 | -7/Factory | Fabricated Tesla Rifle? 14373 | -7/Factory | Local fabrication network quarantined 14694 | -7/Factory | Identified exit to Lower Caves 15285 | -7/Factory | Build established: Hauler-Mutant 15339 | -7/Factory | Entered Lower Caves 15341 | -7/Lower Caves | Attracted the attention of an 0b10 outpost 15397 | -7/Lower Caves | Destroyed 12 combat bots 15499 | -7/Lower Caves | Spotted B-75 Beast 15738 | -7/Lower Caves | Destroyed B-75 Beast 15826 | -7/Lower Caves | Learned Factory garrison access intel 16126 | -7/Lower Caves | Attacked by a delusional Derelict stockpiling parts 16486 | -7/Lower Caves | Discovered new exit (range 13) 16505 | -7/Lower Caves | Identified exit to Lower Caves 16630 | -7/Lower Caves | Entered another Lower Caves area 16758 | -7/Lower Caves | Discovered exit to Factory (range 7) 17664 | -7/Lower Caves | Attracted the attention of an 0b10 outpost 17695 | -7/Lower Caves | Core integrity fell below 20% 17733 | -7/Lower Caves | Discovered new exit (range 16) 17805 | -7/Lower Caves | Attracted the attention of an 0b10 checkpoint 17809 | -7/Lower Caves | 1C-UTU showed up to help 17815 | -7/Lower Caves | 1C-UTU revealed a hidden path 17836 | -7/Lower Caves | Identified exit to Zion 17838 | -7/Lower Caves | Spotted B-75 Beast 17838 | -7/Lower Caves | Entered Zion 17894 | -7/Zion | Given A8's code to call for help 17976 | -7/Zion | Discovered new exit (range 15) 18000 | -7/Zion | Identified exit to Proximity Caves 18375 | -7/Zion | RIF detected upon attempting to enter Zion 18375 | -7/Zion | Attacked by Zionites 18375 | -7/Zion | Spotted YP-TXE(B) 18375 | -7/Zion | Spotted 2U-SQF(B) 18463 | -7/Zion | Entered Proximity Caves 18468 | -6/Proximity Caves | Learned location of 1 exit from Factory 18707 | -6/Proximity Caves | Build established: Scavenger-Mutant 19260 | -6/Proximity Caves | Discovered exit to Factory (range 15) 19352 | -6/Proximity Caves | Entered Factory 19352 | -6/Factory | Evolved 2 slots: Power x1, Utility x1 19353 | -6/Factory | Identified exit to Factory 19354 | -6/Factory | Loaded intel: 3 garrison access locations 19653 | -6/Factory | Fabricated Signal Interpreter (x2) 19680 | -6/Factory | Discovered exit to Factory (range 13) 19707 | -6/Factory | Fabricated Hcp. Storage Unit? 20031 | -6/Factory | Build established: Hauler-Mutant 20443 | -6/Factory | Lost 3 parts (1n2w) 20723 | -6/Factory | Build established: Scavenger-Mutant 20884 | -6/Factory | Garrison activated, responded to threat 21479 | -6/Factory | Discovered exit to Factory (range 15) 22502 | -6/Factory | First assault squad dispatched 22541 | -6/Factory | Sucked down chute 22541 | -6/Factory | Entered Waste 22548 | -6/Waste | Build established: Hauler-Mutant 22576 | -6/Waste | Spotted C-40 Crusher 22580 | -6/Waste | Destroyed C-40 Crusher 22590 | -6/Waste | Spotted C-40 Crusher 22628 | -6/Waste | Spotted C-40 Crusher 22643 | -6/Waste | Spotted C-40 Crusher 22673 | -6/Waste | Spotted C-40 Crusher 22679 | -6/Waste | Crushed by Compactor (1 part destroyed, 1 dropped) 22680 | -6/Waste | Spotted C-40 Crusher 22682 | -6/Waste | Crushed by Compactor (1 part destroyed, 2 dropped) 22709 | -6/Waste | Discovered new exit (range 15) 22731 | -6/Waste | Identified exit to Factory 22735 | -6/Waste | Entered Factory 22862 | -6/Factory | Repaired Lyr. Medium Armor Plating 23056 | -6/Factory | Build established: Scavenger-Mutant 23310 | -6/Factory | Lost 3 parts (1n1u1w) 23377 | -6/Factory | Lost 4 parts (2n2w) 23785 | -6/Factory | First assault squad dispatched 24278 | -6/Factory | Identified exit to Lower Caves 24528 | -6/Factory | Fabricated Hcp. Storage Unit (x1) 24579 | -6/Factory | Fabricated Hcp. Storage Unit? 24695 | -6/Factory | Destroyed 7 combat bots 24856 | -6/Factory | Discovered exit to Factory (range 9) 24961 | -6/Factory | Build established: Hauler-Mutant 25327 | -6/Factory | Lost 7 parts (1p2n2u2w) 25338 | -6/Factory | Core integrity fell below 50% 25594 | -6/Factory | Build established: Scavenger-Mutant 26195 | -6/Factory | Found Prototype Processor 26195 | -6/Factory | Identified Exp. Signal Interpreter 26212 | -6/Factory | Found Exp. Signal Interpreter 26371 | -6/Factory | Discovered exit to Factory (range 6) 26485 | -6/Factory | Entered Lower Caves 26498 | -6/Lower Caves | Learned Factory emergency access door positions 26517 | -6/Lower Caves | Encountered a Warlord checkpoint 26731 | -6/Lower Caves | Learned Factory trap positions 26769 | -6/Lower Caves | Build established: Hauler-Mutant 26824 | -6/Lower Caves | Attracted the attention of an 0b10 outpost 27428 | -6/Lower Caves | Discovered new exit (range 10) 27438 | -6/Lower Caves | Identified exit to Lower Caves 28562 | -6/Lower Caves | Entered another Lower Caves area 28564 | -6/Lower Caves | Attracted the attention of an 0b10 checkpoint 28732 | -6/Lower Caves | Discovered exit to Factory (range 4) 29075 | -6/Lower Caves | Attacked by a delusional Derelict stockpiling Unaware 29260 | -6/Lower Caves | Learned Factory emergency access door positions 29473 | -6/Lower Caves | Discovered new exit (range 15) 29499 | -6/Lower Caves | Identified exit to Data Miner 29519 | -6/Lower Caves | Entered Data Miner 29519 | -6/Data Miner | Discovered new exit (range 6) 29529 | -6/Data Miner | Identified exit to Proximity Caves 29556 | -6/Data Miner | Met Data Miner 29589 | -6/Data Miner | Learned location of Section 7 (-2) 29589 | -6/Data Miner | Acquired the access code to Warlord's prototype stash 29621 | -6/Data Miner | Received God Mode back door access code from Data Miner 29639 | -6/Data Miner | Data Conduit disabled 29715 | -6/Data Miner | Core integrity fell below 20% 29747 | -6/Data Miner | Lost 5 parts (1n2u2w) 29756 | -6/Data Miner | Found Prototype Device 29756 | -6/Data Miner | Identified Exp. Thermal Shield 30029 | -6/Data Miner | Build established: Scavenger-Mutant 30374 | -6/Data Miner | Entered Proximity Caves 30404 | -5/Proximity Caves | Attracted the attention of an 0b10 checkpoint 30641 | -5/Proximity Caves | Learned Factory security intel 30867 | -5/Proximity Caves | Discovered exit to Factory (range 8) 30909 | -5/Proximity Caves | Entered Factory 30909 | -5/Factory | Evolved 2 slots: Utility x1, Weapon x1 30910 | -5/Factory | Loaded intel: 87 trap records 31078 | -5/Factory | Repaired System Backup Module 31100 | -5/Factory | Discovered new exit (range 15) 31121 | -5/Factory | Identified exit to Factory 31216 | -5/Factory | Discovered new exit (range 10) 31221 | -5/Factory | Build established: Scavenger-Gunner 31230 | -5/Factory | Identified exit to Upper Caves 31403 | -5/Factory | Local fabrication network quarantined 31548 | -5/Factory | Fabricated Exp. Targeting Computer? 32139 | -5/Factory | Entered Upper Caves 32520 | -5/Upper Caves | Build established: Scavenger-Mutant 32866 | -5/Upper Caves | Attracted the attention of an 0b10 base 32932 | -5/Upper Caves | Destroyed 7 combat bots 32941 | -5/Upper Caves | Lost 3 parts (2n1w) 33097 | -5/Upper Caves | Learned Extension emergency access door positions 33097 | -5/Upper Caves | Learned Extension stockpile data 33097 | -5/Upper Caves | Learned Factory security intel 33442 | -5/Upper Caves | Attracted the attention of an 0b10 checkpoint 33568 | -5/Upper Caves | Learned Factory stockpile data 33781 | -5/Upper Caves | Discovered new exit (range 13) 33798 | -5/Upper Caves | Identified exit to Upper Caves 34311 | -5/Upper Caves | Entered another Upper Caves area 34320 | -5/Upper Caves | Learned 4 Factory zone layouts 34383 | -5/Upper Caves | Lost 3 parts (1n1u1w) 34525 | -5/Upper Caves | Learned location of Warlord (-4) 34552 | -5/Upper Caves | Discovered exit to Factory (range 10) 34620 | -5/Upper Caves | Build established: Scavenger-Gunner 35968 | -5/Upper Caves | Attracted the attention of an 0b10 outpost 36032 | -5/Upper Caves | Lost 4 parts (1n2u1w) 36039 | -5/Upper Caves | Destroyed 7 combat bots 36265 | -5/Upper Caves | Crushed by falling debris 36406 | -5/Upper Caves | Build established: Scavenger-Mutant 37190 | -5/Upper Caves | Discovered new exit (range 6) 37235 | -5/Upper Caves | Found Alien Artifact 37235 | -5/Upper Caves | Identified Dimensional Node Initializer 37235 | -5/Upper Caves | Initialized slip node 37283 | -5/Upper Caves | Entered Zhirov 37283 | -5/Zhirov | Discovered new exit (range 3) 37316 | -5/Zhirov | Met Zhirov 37348 | -5/Zhirov | Learned location of Quarantine (-2) 37348 | -5/Zhirov | Learned location of Testing (-3) 37348 | -5/Zhirov | Learned location of Command (-1) 37382 | -5/Zhirov | Zhirov requested help retrieving the SGEMP Prototype 37417 | -5/Zhirov | Found Alien Artifact 37417 | -5/Zhirov | Identified Transdimensional Reconstructor 37417 | -5/Zhirov | Warped through subspace 37473 | -5/Zhirov | Found Alien Artifact 37473 | -5/Zhirov | Identified Integrated Reactor 37473 | -5/Zhirov | Installed Integrated Reactor, increased core energy generation (+10) 37774 | -5/Zhirov | Entered Proximity Caves 38150 | -4/Proximity Caves | Attracted the attention of an 0b10 base 38194 | -4/Proximity Caves | Core integrity fell below 50% 38250 | -4/Proximity Caves | Lost 19 parts (3p3n6u7w) 38279 | -4/Proximity Caves | System corruption reached 10% 38288 | -4/Proximity Caves | Core integrity fell below 20% 38305 | -4/Proximity Caves | Core destroyed Last Messages --------------- 38286_ Hvy. Mace fries itself beyond repair. 38286_ G-67 Veteran suffers critical hit. 38286_ Destroyed Electrolaser. 38290_ Slug penetrates G-67 Veteran. 38290_ G-67 Veteran suffers critical hit. 38290_ Destroyed Flexi-carbon Leg. 38291_ Adv. Heat Sink fries itself beyond repair. 38293_ G-67 Veteran destroyed. 38295_ Adv. Heat Sink fries itself beyond repair. 38298_ Flexi-carbon Leg fries itself beyond repair. 38298_ Plasma Rifle fries itself beyond repair. 38298_ Flexi-carbon Leg fries itself beyond repair. 38301_ Overheating: System interference. 38301_ Enh. Gauss Cannon temporarily disabled. 38301_ Plasma Rifle temporarily disabled. 38302_ Overheating: Core damaged (-170). 38303_ Enh. Gauss Cannon destroyed. 38304_ Overheating: Matter decay (-23). 38305_ Overheating: Core damaged (-160). [Achievement: 40k Club] Map ----- +----------------------------------------------------+ | ##????????######??????????????????????????????? | | ##????### #??????????????????????????????? | | ###### ##?????????????????????????????? | | #?????????????????????????????? | | #?????????????????????????????????? | | ####### ##?????????????????????????????????? | | # #?????## #??????????????????????????????????? | | ## #?????## #??????????????????????????????????? | | ?# #?????# #?????????#????????????????????????? | | ?# #?????# ##???????? ##???????????????????????? | | ## #????## #???????? #???????????????????????? | | ## #???## #?????? ;??##???????????????????? | | #???# ####### ##;##??????????????????? | | ## #???# ## #?? ??????????????? | | ?# #???# # #? g ????????????? | | ?# #???## ###;;;;;;;; ## ????????????? | | ?# #?#### #" ; ????????????? | | ?# ### #" ; ?????????????? | | ?# # ; ??????????????? | | ?# # #" ; #???????????????? | | ?######## ## #" ; ????????????????? | | ???###??## ### #" % ; ??????????????????? | | ???# ?#####" #" g; ???????????????????? | | ??# ??## #" ; ????#???????????????? | | ??# ##" #" % #?? #???????????????? | | ???# ##/#"+#;@## #???????????????? | | ????# % % #???????????????? | | ????# % % #???????????????? | | ????# %;;;;;###### #??????????????? | | ????## ##### %;;# ????????????????????????? | | ?????##?????## #;#####????????????????????? | | #????????????# %;# ##???????????????????? | | ##???????????#### ;;% % ######## ???????????? | | #??????????????#### ????????? | | ##?????????????????#"" ????????? | | #??????????????????# ; ######## ????????? | | ???????????????????#### ######???????????????????? | | ??????????????????????###????????????????????????? | | ?????????????????????????????????????????????????? | | ?????????????????????????????????????????????????? | | ?????????????????????????????????????????????????? | | ?????????????????????????????????????????????????? | | ?????????????????????????????????????????????????? | | ?????????????????????????????????????????????????? | | ?????????????????????????????????????????????????? | | ?????????????????????????????????????????????????? | | ?????????????????????????????????????????????????? | | ?????????????????????????????????????????????????? | | ?????????????????????????????????????????????????? | | ?????????????????????????????????????????????????? | +----------------------------------------------------+ Best States ------------- Heat Dissipation 97 Energy Generation 51 Energy Capacity 900 Matter Stores 300 Matter Capacity 300 Sight Range 16 Robot Scan Range 30 Terrain Scan Density 210 Armor Coverage 600 Resistance: KI 25 Resistance: EM 20 Core Shielding 30 Power Shielding 66 Weapon Shielding 90 Phase Shifting 5 Evasion (%) 50 Targeting Accuracy 14 Recoil Reduction 4 Particle Charging 25 Offensive Hacking 20 Defensive Hacking 10 Item Schematics ----------------- Signal Interpreter | -10/Materials | Hacked Hcp. Storage Unit | -10/Materials | Hacked Rocket Launcher | -8/Materials | Scanalyzed Hvy. Phase Cannon | -7/Factory | Hacked Imp. Hacking Suite | -6/Factory | Scanalyzed Combat Drone Bay | -6/Data Miner | Free Lgt. Regenerative Plating | -6/Data Miner | Free Cmb. Gravmag System | -6/Data Miner | Free Exp. Terrain Scanner | -6/Data Miner | Free Exp. Targeting Computer | -6/Data Miner | Free Tactical Coordination Suite | -6/Data Miner | Free Exp. ECM Suite | -6/Data Miner | Free Plasma Sword | -6/Data Miner | Free Kinetic Spear | -6/Data Miner | Free Assault Drone Bay | -5/Zhirov | Free Exp. Heat Sink | -5/Zhirov | Free Exp. Optical Array | -5/Zhirov | Free Imp. Arc Thrower | -5/Zhirov | Free Robot Schematics ------------------ S-27 Virus | -6/Data Miner | Free G-50 Soldier | -6/Data Miner | Free X-72 Disruptor | -6/Data Miner | Free H-66 Slayer | -6/Data Miner | Free I-36 Angel | -6/Data Miner | Free I-47 Archangel | -6/Data Miner | Free Fabricated ------------ Rocket Launcher | x1 | -7/Factory Tesla Rifle | x1 | -7/Factory | Preloaded Signal Interpreter | x2 | -6/Factory Hcp. Storage Unit | x1 | -6/Factory Hcp. Storage Unit | x1 | -6/Factory Hcp. Storage Unit | x1 | -6/Factory Exp. Targeting Computer | x1 | -5/Factory Alien Tech Used ----------------- Dimensional Node Initializer Transdimensional Reconstructor Integrated Reactor Achievements -------------- 40k Club GoHome() I Survived The Infestation Infiltrator It's Just You Oops True Hacker Unlikely Earthworm What Is This Thing? Challenges ------------ None Game ------ Seed AutogunWaveMicrothruster Manual? 0 Play Time 06:48:00 Cumulative 28.2 hours Start 2021.09.12 @ 11:44:04 End 2021.09.12 @ 22:41:09 Sessions 5 Manual Loads 0 Difficulty Rogue Special Mode None Game No. 153 Rogue 153 Adventurer 0 Explorer 0 Win Type - Total 0 Types 0/0/0/0/0/0/0/0/0 Lore% 53 Gallery% 68 Achievement% 30 Wizard Run 0 Options --------- ASCII 0 Keyboard 1 Movement Numpad Keybinds 0 Fullscreen 1 Font 20/SmallcapsGlow Map View 66x50 Tactical HUD 1 Map Filters NONE Filters NONE Steam 0 RUN: 414b9ac9-bcc8-4585-9b68-a9eaf91a1c96